{"text_format":"3","workbook":"xlsx","n_sheets":4,"sheets":["Laatukriteerit ja mittarit","Kuvattavan tiedon esittely","Tietoaineistotason mittarit","Ominaisuustason mittarit"],"read":"whole","date_system":"1900"}

{"sheet":"Laatukriteerit ja mittarit","index":0,"n_rows":18,"n_cols":1,"rows_kept":18}
["Laatukriteerit ja mittarit"]
["Mittariston kuvaamisen avuksi laadittu mittaristopohja sisältää laatukriteerien mittarit jaettuna tietoaineistotason ja ominaisuustason tarkasteluihin."]
["Tällä välilehdellä luetellaan laatukriteerien mittarit kriteeriryhmittäin."]
["Laatukriteeriryhmä: Miten tieto kuvaa todellisuutta?"]
["Kattavuuden mittarit ovat ajallinen tavoitekattavuus, alueellinen tavoitekattavuus, tavoitekohdeyksiköt, tavoiteominaisuuksissa puutteita, puuttuvat kohdeyksiköt, ylimääräiset kohdeyksiköt, puutteelliset kohdeyksiköt ja puutteelliset ominaisuustiedot."]
["Virheettömyyden mittarit ovat menetelmällisesti tuotetut arvot, virheelliset ominaisuusarvot ja väärinluokittelu."]
["Tarkkuuden mittarit ovat keskihajonta ja poikkeavat havainnot."]
["Ajantasaisuuden mittarit ovat viiteajankohta, luontiajankohta, tarkistusajankohta ja muutosajankohta."]
["Johdonmukaisuuden mittari on tieto loogisuustarkastettu."]
["Laatukriteeriryhmä: Miten tieto on kuvattu?"]
["Alkuperäisyyden mittarit ovat tietolähde, tiedon elinkaari ja muutosten hallinta."]
["Metatietojen ymmärrettävyyden mittarit ovat aineistokuvaus, käsitteiden määritelmät, ominaisuuksien tietokuvaukset ja ymmärrettävyyden asiakaspalaute."]
["Metatietojen ymmärrettävyyden mittarit ovat aineistokuvaus, käsitteiden määritelmät, ominaisuuksien tietokuvaukset ja ymmärrettävyyden asiakaspalaute."]
["Suositustenmukaisuuden mittari on noudatettavat säädökset ja standardit."]
["Laatukriteeriryhmä: Miten tietoa voi käyttää?"]
["Koneluettavuuden mittarit ovat tietoaineiston tietomalli, kohdeyksikön pysyvä tunniste ja koneluettavuuden asiakaspalaute."]
["Käyttöoikeuksien mittarit ovat käyttöoikeus ja  käytön rajoitukset."]
["Oikea-aikaisuuden mittarit ovat määräpäivien noudattaminen, päivitystiheys ja päivityksessä muuttuneet ominaisuustiedot."]

{"sheet":"Kuvattavan tiedon esittely","index":1,"n_rows":9,"n_cols":4,"rows_kept":9}
["Kuvattavan tiedon esittely"]
["Tietoaineisto ja tarkasteltavat ominaisuudet tulee esitellä lyhyesti tällä välilehdellä. Kirjoita kuvattavan tietoaineiston ja ominaisuuksien nimet taulukkoon. Huomaa, että kuvattavan ominaisuuden nimi kopioituu tästä suoraan mittarin arvojen välilehdelle tietojen täyttämisen helpottamiseksi."]
["Laatukuvauksen kohde","Nimi","Tiivis kuvaus","Linkki lisätietoihin"]
["Tietoaineistokokonaisuus"]
["Kuvattava ominaisuus 1","nimi1"]
["Kuvattava ominaisuus 2","nimi2"]
["Kuvattava ominaisuus 3","nimi3"]
["Kuvattava ominaisuus 4","nimi4"]
["Kuvattava ominaisuus 5","nimi5"]

{"sheet":"Tietoaineistotason mittarit","index":2,"n_rows":29,"n_cols":7,"rows_kept":29}
["Tietoaineistotason mittarit"]
["Mittarien arvot tietoaineistotasolla tarkasteltuna. Huomaa, ettei virheettömyydelle ja tarkkuudelle ole tietoaineistotason mittareita."]
["Laatukriteeri","Mittarin nimi","Kuvaus","Lisäohje mittarin arvon tuottamiseen","Mittarin arvon esitysmuoto","Mittarin saama arvo","Sanallinen kuvaus"]
["Johdonmukaisuus","Tieto loogisuustarkastettu","Onko tietoaineistoa tarkasteltu loogisuusehdoin tietoaineiston koostamisessa tai käsittelyssä?","Mittari saa arvon kyllä, mikäli suurin osa tietoaineiston tiedoista on tarkastettu loogisuusehdoin.","kyllä/ei "]
["Ajantasaisuus","Viiteajankohta","Ajankohta, jota tietoaineisto kuvaa.  Arvosta voi laskea tietoaineiston käsittelyn aiheuttaman viiveen ennen tiedon julkaisua tai käyttöön saattamista.","Jos tietoaineisto kuvaa tietyn ajankohdan ilmiötä kerrotaan kyseinen ajankohta.","ajankohta/ei relevantti"]
["Ajantasaisuus","Luontiajankohta","Tietoaineiston luontiajankohta","Ajankohta, josta lähtien tietoaineiston tietoja on ollut saatavilla.","ajankohta"]
["Ajantasaisuus","Tarkistusajankohta","Tietoaineiston viimeisin tarkistusajankohta.","Ajankohta, jolloin jotain tietoaineiston tietoja on viimeksi tarkistettu.","ajankohta/ei relevantti"]
["Ajantasaisuus","Muutosajankohta","Tietoaineiston viimeisin muutosajankohta.","Viimeisin päivämäärä, jolloin tietoaineistoa on muokattu.","ajankohta/ei relevantti"]
["Kattavuus","Ajallinen tavoitekattavuus","Onko tietoaineiston ajallinen tavoitekattavuus ja ajallinen tiheys kuvattu esimerkiksi aineistokuvauksessa?","Mittari saa arvon kyllä, mikäli tietoaineiston ajallinen tavoitekattavuus on määritelty.","kyllä/ei ja mahdollinen lisätieto"]
["Kattavuus","Alueellinen tavoitekattavuus","Onko tietoaineiston alueellinen tavoitekattavuus ja alueellinen tiheys kuvattu esimerkiksi aineistokuvauksessa?","Mittari saa arvon kyllä, mikäli tietoaineiston alueellinen tavoitekattavuus on määritelty.","kyllä/ei ja mahdollinen lisätieto"]
["Kattavuus","Tavoitekohdeyksiköt","Onko tietoaineiston tavoitekohdeyksiköitä kuvattu muuten kuin ajallisen ja alueellisen kattavuuden kautta?","Mittari saa arvon kyllä, mikäli tietoaineiston tavoitekohdeyksiköitä on määritelty tarkemmin esim. aineistokuvauksessa.","kyllä/ei ja mahdollinen lisätieto"]
["Kattavuus","Tavoiteominaisuuksissa puutteita","Puuttuuko tietoaineistosta jotain sellaisia ominaisuuksia, joita tietoaineistoon olisi tärkeä sisältyä?","Mittari saa arvon kyllä, mikäli tietoaineiston tavoiteominaisuuksista jokin puuttuu tietoaineistosta. ","kyllä/ei "]
["Kattavuus","Puuttuvat kohdeyksiköt","Tietoaineiston alipeiton eli tietoaineiston tavoitekohdejoukosta puuttuvien kohdeyksiköiden prosentuaalinen osuus.","Puuttuvien kohdeyksiköiden määrää voi arvioida myös suhteessa toiseen tietoaineistoon tai muuhun tietoon tai kokemuksen perusteella. ","prosentteina"]
["Kattavuus","Ylimääräiset kohdeyksiköt","Tietoaineiston ylipeiton eli tietoaineistossa mukana olevien, mutta tietoaineiston tavoiteperusjoukkoon kuulumattomien ja siten ylimääräisten kohdeyksiköiden prosentuaalinen osuus.","Ylimääräisten kohdeyksiköiden määrää voi arvioida myös suhteessa toiseen tietoaineistoon tai muuhun tietoon tai kokemuksen perusteella. ","prosentteina"]
["Kattavuus","Puutteelliset kohdeyksiköt","Tietoaineiston puuttuvia ominaisuustietoja omaavien kohdeyksiköiden osuus kaikista kohdeyksiköistä.","Yhdenkin puuttuvan tiedon omaava kohdeyksikkö on puutteellinen kohdeyksikkö. Puuttuvuudessa ei oteta huomioon rakenteellista puuttuvuutta.","prosentteina"]
["Kattavuus","Puutteelliset ominaisuustiedot","Kuinka suuri osuus kohdeyksiköistä saa puuttuvan arvon ominaisuuden suhteen tarkasteltuna. Kuinka kattavasti tietoaineistossa on arvoja tietylle ominaisuudelle.","Puuttuvuudessa ei oteta huomioon rakenteellista puuttuvuutta.","prosentteina"]
["Alkuperäisyys","Tietolähde","Kuinka suurella osalla kohdeyksiköitä ja ominaisuustietoja lähdetiedot ovat saatavilla? Arvo ilmoitetaan saatavilla olevien lähdetietojen suhteena kaikkiin tietoihin.","Keskitytään tarkastelemaan tietolähdettä, josta tiedot on saatu laatua arvioivalle taholle ja tarkastellaan ensisijaisesti organisaation ulkopuolisia tietolähteitä. Keskimääräiset osuudet riittävät, yksittäisten kohdeyksiköiden lähteitä ei tarvitse käydä läpi.","prosentteina"]
["Alkuperäisyys","Tiedon elinkaari","Onko tietoaineiston elinkaari määritelty ja kuvaus siitä saatavilla?","Mittari saa arvon kyllä, mikäli tietoaineiston elinkaari on määritelty ja kuvaus on saatavilla. ","kyllä/ei "]
["Metatietojen ymmärrettävyys","Aineistokuvaus","Mitä kieliversioita tietoaineiston aineistokuvauksesta on saatavilla","Kirjataan ne kielet, joilla aineistokuvaus on saatavilla ","kielet"]
["Metatietojen ymmärrettävyys","Käsitteiden määritelmät","Onko tietoaineiston keskeiset käsitteet määritelty selkeästi ja mitkä kieliversiot niistä on saatavilla?","Kirjataan ne kielet, joilla käsitteiden määritelmät on saatavilla ","kielet"]
["Metatietojen ymmärrettävyys","Ymmärrettävyyden aisiakaspalaute","Onko palautetta mahdollista antaa, reagoidaanko siihen ja voidaanko palautetta tarvittaessa hyödyntää tietoaineiston kehittämisessä?","Mittari saa arvon kyllä, mikäli palauteväylä on olemassa ja helposti käytettävissä ja lisäksi saatuun palautteeseen reagoidaan","kyllä/ei "]
["Suositustenmukaisuus","Noudatettavat säädökset ja suositukset","Ovatko tietoaineiston noudattamat standardit, käytännöt ja säädökset listattuna tietoaineiston kuvauksissa?","Mittari saa arvon kyllä, mikäli standardit on tunnistettu ja kuvattu.  ","kyllä/osittain/ei "]
["Koneluettavuus","Tietoaineiston tietomalli","Onko tietoaineisto rakenteisesti kuvattu?","Mittari saa arvon kyllä, mikäli tietoaineiston rakenne on kuvattu tietomallin mukaisesti.","kyllä/ei "]
["Koneluettavuus","Kohdeyksikön pysyvä tunniste","Onko tietoaineiston kohdeyksiköillä vähintään tietoaineistokohtainen pysyvä tunniste, jonka perusteella kohdeyksiköt voidaan erottaa toisistaan?","Mittari saa arvon kyllä, mikäli kohdeyksiköillä on vähintään tietoaineiston sisäisesti pysyvä tunniste.","kyllä/ei "]
["Koneluettavuus","Koneluettavuuden asiakaspalaute","Onko koneluettavuudesta mahdollisuus antaa palautetta olemassa olevan palauteväylän kautta tai kohdennetulla asiakaskyselyllä? Jos palauteväylä on olemassa, reagoidaanko saatuun palautteeseen?","Mittari saa arvon kyllä, mikäli palauteväylä on olemassa ja helposti käytettävissä ja lisäksi saatuun palautteeseen reagoidaan","kyllä/ei "]
["Käyttöoikeudet","Käyttöoikeus","Miten tietoaineiston käyttö on rajoitettu eli kenen käytettävissä tietoaineisto on.","Kuvataan tiiviisti käyttöoikeuden rajaukset. Mahdolliset käyttöoikeuden lisätiedot kirjataan toisaalle. ","sanallinen ilmaus"]
["Käyttöoikeudet","Käytön rajoitukset","Mihin kaikkiin käyttötarkoituksiin tietoaineiston tietoa on luvallista käyttää.","Kuvataan tiiviisti käyttötarkoituksen rajaukset. Mahdolliset käyttöoikeuden lisätiedot kirjataan toisaalle.","sanallinen ilmaus"]
["Oikea-aikaisuus","Määräpäivien noudattaminen","Tarkastellaan tietoaineiston suunniteltua toimitusaikataulua suhteessa toteutuneeseen toimitusaikatauluun. ","Kerrotaan edellisen toimituskerran osalta mahdollinen viive toteutuneen toimitusajan ja ennalta ilmoitetun toimitusajan erotus.","toimitusviive/ ei relevantti  "]
["Oikea-aikaisuus","Päivitystiheys","Tietoaineiston säännöllinen päivitystiheys.  Lisäksi voidaan kertoa myös, jos joitakin ominaisuustietoja päivitetään eri päivitysrytmillä.","Päivitystiheys sanallisesti ilmaistuna.","sanallinen ilmaus"]

{"sheet":"Ominaisuustason mittarit","index":3,"n_rows":83,"n_cols":8,"rows_kept":83}
["Ominaisuustason mittarit"]
["Mittarien arvot ominaisuustasolla tarkasteltuna. Huomaa, ettei käyttöoikeuksille ja koneluettavuudelle ole ominaisuustason mittareita."]
["Laatukriteeri","Mittarin nimi","Kuvaus","Lisäohje mittarin arvon tuottamiseen","Mittarin arvon esitysmuoto","Ominaisuuden nimi (luetaan tiedon esittelysivulta)","Mittarin saama arvo","Sanallinen kuvaus"]
["Virheettömyys","Menetelmällisesti tuotetut arvot","Tietoaineiston menetelmällisesti tai korvaavalla tiedolla tuotettujen ominaisuusarvojen osuus kaikista ominaisuuden arvoista. ","Yleensä menetelmällisesti tuotetut arvot on merkitty tietoaineistoon, joten mittarin arvon saadaan laskemalla näiden merkintöjen osuus verrattuna ominaisuuden kaikkien arvojen lukumäärään.","prosentteina",{"$f":"'Kuvattavan tiedon esittely'!B5","v":"nimi1"}]
["Virheettömyys","Menetelmällisesti tuotetut arvot","Tietoaineiston menetelmällisesti tai korvaavalla tiedolla tuotettujen ominaisuusarvojen osuus kaikista ominaisuuden arvoista. ","Yleensä menetelmällisesti tuotetut arvot on merkitty tietoaineistoon, joten mittarin arvon saadaan laskemalla näiden merkintöjen osuus verrattuna ominaisuuden kaikkien arvojen lukumäärään.","prosentteina",{"$f":"'Kuvattavan tiedon esittely'!B6","v":"nimi2"}]
["Virheettömyys","Menetelmällisesti tuotetut arvot","Tietoaineiston menetelmällisesti tai korvaavalla tiedolla tuotettujen ominaisuusarvojen osuus kaikista ominaisuuden arvoista. ","Yleensä menetelmällisesti tuotetut arvot on merkitty tietoaineistoon, joten mittarin arvon saadaan laskemalla näiden merkintöjen osuus verrattuna ominaisuuden kaikkien arvojen lukumäärään.","prosentteina",{"$f":"'Kuvattavan tiedon esittely'!B7","v":"nimi3"}]
["Virheettömyys","Menetelmällisesti tuotetut arvot","Tietoaineiston menetelmällisesti tai korvaavalla tiedolla tuotettujen ominaisuusarvojen osuus kaikista ominaisuuden arvoista. ","Yleensä menetelmällisesti tuotetut arvot on merkitty tietoaineistoon, joten mittarin arvon saadaan laskemalla näiden merkintöjen osuus verrattuna ominaisuuden kaikkien arvojen lukumäärään.","prosentteina",{"$f":"'Kuvattavan tiedon esittely'!B8","v":"nimi4"}]
["Virheettömyys","Menetelmällisesti tuotetut arvot","Tietoaineiston menetelmällisesti tai korvaavalla tiedolla tuotettujen ominaisuusarvojen osuus kaikista ominaisuuden arvoista. ","Yleensä menetelmällisesti tuotetut arvot on merkitty tietoaineistoon, joten mittarin arvon saadaan laskemalla näiden merkintöjen osuus verrattuna ominaisuuden kaikkien arvojen lukumäärään.","prosentteina",{"$f":"'Kuvattavan tiedon esittely'!B9","v":"nimi5"}]
["Virheettömyys","Virheelliset ominaisuusarvot","Virheellisten ominaisuusarvojen suhde ominaisuusarvojen kokonaismäärään.","Kerrotaan kuinka suuri osuus ominaisuuden arvoista on virheellisiä.","prosentteina",{"$f":"'Kuvattavan tiedon esittely'!B5","v":"nimi1"}]
["Virheettömyys","Virheelliset ominaisuusarvot","Virheellisten ominaisuusarvojen suhde ominaisuusarvojen kokonaismäärään.","Kerrotaan kuinka suuri osuus ominaisuuden arvoista on virheellisiä.","prosentteina",{"$f":"'Kuvattavan tiedon esittely'!B6","v":"nimi2"}]
["Virheettömyys","Virheelliset ominaisuusarvot","Virheellisten ominaisuusarvojen suhde ominaisuusarvojen kokonaismäärään.","Kerrotaan kuinka suuri osuus ominaisuuden arvoista on virheellisiä.","prosentteina",{"$f":"'Kuvattavan tiedon esittely'!B7","v":"nimi3"}]
["Virheettömyys","Virheelliset ominaisuusarvot","Virheellisten ominaisuusarvojen suhde ominaisuusarvojen kokonaismäärään.","Kerrotaan kuinka suuri osuus ominaisuuden arvoista on virheellisiä.","prosentteina",{"$f":"'Kuvattavan tiedon esittely'!B8","v":"nimi4"}]
["Virheettömyys","Virheelliset ominaisuusarvot","Virheellisten ominaisuusarvojen suhde ominaisuusarvojen kokonaismäärään.","Kerrotaan kuinka suuri osuus ominaisuuden arvoista on virheellisiä.","prosentteina",{"$f":"'Kuvattavan tiedon esittely'!B9","v":"nimi5"}]
["Virheettömyys","Väärinluokittelu","Virheellisesti luokiteltujen kohdeyksiköiden suhde kohdeyksiköiden kokonaismäärään.","Kerrotaan kuinka suuri osuus ominaisuuden arvoista on luokiteltu väärin.","prosentteina",{"$f":"'Kuvattavan tiedon esittely'!B5","v":"nimi1"}]
["Virheettömyys","Väärinluokittelu","Virheellisesti luokiteltujen kohdeyksiköiden suhde kohdeyksiköiden kokonaismäärään.","Kerrotaan kuinka suuri osuus ominaisuuden arvoista on luokiteltu väärin.","prosentteina",{"$f":"'Kuvattavan tiedon esittely'!B6","v":"nimi2"}]
["Virheettömyys","Väärinluokittelu","Virheellisesti luokiteltujen kohdeyksiköiden suhde kohdeyksiköiden kokonaismäärään.","Kerrotaan kuinka suuri osuus ominaisuuden arvoista on luokiteltu väärin.","prosentteina",{"$f":"'Kuvattavan tiedon esittely'!B7","v":"nimi3"}]
["Virheettömyys","Väärinluokittelu","Virheellisesti luokiteltujen kohdeyksiköiden suhde kohdeyksiköiden kokonaismäärään.","Kerrotaan kuinka suuri osuus ominaisuuden arvoista on luokiteltu väärin.","prosentteina",{"$f":"'Kuvattavan tiedon esittely'!B8","v":"nimi4"}]
["Virheettömyys","Väärinluokittelu","Virheellisesti luokiteltujen kohdeyksiköiden suhde kohdeyksiköiden kokonaismäärään.","Kerrotaan kuinka suuri osuus ominaisuuden arvoista on luokiteltu väärin.","prosentteina",{"$f":"'Kuvattavan tiedon esittely'!B9","v":"nimi5"}]
["Tarkkuus","Keskihajonta","Miten laajalle alueelle ominaisuusarvot ovat keskimäärin jakautuneet.","Lasketaan ominaisuudelle keskihajonta.","keskihajonnan arvo",{"$f":"'Kuvattavan tiedon esittely'!B5","v":"nimi1"}]
["Tarkkuus","Keskihajonta","Miten laajalle alueelle ominaisuusarvot ovat keskimäärin jakautuneet.","Lasketaan ominaisuudelle keskihajonta.","keskihajonnan arvo",{"$f":"'Kuvattavan tiedon esittely'!B6","v":"nimi2"}]
["Tarkkuus","Keskihajonta","Miten laajalle alueelle ominaisuusarvot ovat keskimäärin jakautuneet.","Lasketaan ominaisuudelle keskihajonta.","keskihajonnan arvo",{"$f":"'Kuvattavan tiedon esittely'!B7","v":"nimi3"}]
["Tarkkuus","Keskihajonta","Miten laajalle alueelle ominaisuusarvot ovat keskimäärin jakautuneet.","Lasketaan ominaisuudelle keskihajonta.","keskihajonnan arvo",{"$f":"'Kuvattavan tiedon esittely'!B8","v":"nimi4"}]
["Tarkkuus","Keskihajonta","Miten laajalle alueelle ominaisuusarvot ovat keskimäärin jakautuneet.","Lasketaan ominaisuudelle keskihajonta.","keskihajonnan arvo",{"$f":"'Kuvattavan tiedon esittely'!B9","v":"nimi5"}]
["Tarkkuus","Poikkeavat havainnot","Poikkeavien havaintojen lukumäärän suhde kaikkien kohdeyksiköiden lukumäärään.","Ominaisuuden sisältämien poikkeavien arvojen osuus. Poikkeavia havaintoja ovat vähintään 2,5 kertaa keskihajonnan verran keskiarvosta poikkeavat arvot.","prosentteina",{"$f":"'Kuvattavan tiedon esittely'!B5","v":"nimi1"}]
["Tarkkuus","Poikkeavat havainnot","Poikkeavien havaintojen lukumäärän suhde kaikkien kohdeyksiköiden lukumäärään.","Ominaisuuden sisältämien poikkeavien arvojen osuus. Poikkeavia havaintoja ovat vähintään 2,5 kertaa keskihajonnan verran keskiarvosta poikkeavat arvot.","prosentteina",{"$f":"'Kuvattavan tiedon esittely'!B6","v":"nimi2"}]
["Tarkkuus","Poikkeavat havainnot","Poikkeavien havaintojen lukumäärän suhde kaikkien kohdeyksiköiden lukumäärään.","Ominaisuuden sisältämien poikkeavien arvojen osuus. Poikkeavia havaintoja ovat vähintään 2,5 kertaa keskihajonnan verran keskiarvosta poikkeavat arvot.","prosentteina",{"$f":"'Kuvattavan tiedon esittely'!B7","v":"nimi3"}]
["Tarkkuus","Poikkeavat havainnot","Poikkeavien havaintojen lukumäärän suhde kaikkien kohdeyksiköiden lukumäärään.","Ominaisuuden sisältämien poikkeavien arvojen osuus. Poikkeavia havaintoja ovat vähintään 2,5 kertaa keskihajonnan verran keskiarvosta poikkeavat arvot.","prosentteina",{"$f":"'Kuvattavan tiedon esittely'!B8","v":"nimi4"}]
["Tarkkuus","Poikkeavat havainnot","Poikkeavien havaintojen lukumäärän suhde kaikkien kohdeyksiköiden lukumäärään.","Ominaisuuden sisältämien poikkeavien arvojen osuus. Poikkeavia havaintoja ovat vähintään 2,5 kertaa keskihajonnan verran keskiarvosta poikkeavat arvot.","prosentteina",{"$f":"'Kuvattavan tiedon esittely'!B9","v":"nimi5"}]
["Johdonmukaisuus","Tieto loogisuustarkastettu","Onko ominaisuutta tarkasteltu loogisuusehdoin tietoaineiston koostamisessa tai käsittelyssä?","Mittari saa arvon kyllä, mikäli ominaisuuden tietoja on tarkastettu loogisuusehdoin.","kyllä/ei ",{"$f":"'Kuvattavan tiedon esittely'!B5","v":"nimi1"}]
["Johdonmukaisuus","Tieto loogisuustarkastettu","Onko ominaisuutta tarkasteltu loogisuusehdoin tietoaineiston koostamisessa tai käsittelyssä?","Mittari saa arvon kyllä, mikäli ominaisuuden tietoja on tarkastettu loogisuusehdoin.","kyllä/ei ",{"$f":"'Kuvattavan tiedon esittely'!B6","v":"nimi2"}]
["Johdonmukaisuus","Tieto loogisuustarkastettu","Onko ominaisuutta tarkasteltu loogisuusehdoin tietoaineiston koostamisessa tai käsittelyssä?","Mittari saa arvon kyllä, mikäli ominaisuuden tietoja on tarkastettu loogisuusehdoin.","kyllä/ei ",{"$f":"'Kuvattavan tiedon esittely'!B7","v":"nimi3"}]
["Johdonmukaisuus","Tieto loogisuustarkastettu","Onko ominaisuutta tarkasteltu loogisuusehdoin tietoaineiston koostamisessa tai käsittelyssä?","Mittari saa arvon kyllä, mikäli ominaisuuden tietoja on tarkastettu loogisuusehdoin.","kyllä/ei ",{"$f":"'Kuvattavan tiedon esittely'!B8","v":"nimi4"}]
["Johdonmukaisuus","Tieto loogisuustarkastettu","Onko ominaisuutta tarkasteltu loogisuusehdoin tietoaineiston koostamisessa tai käsittelyssä?","Mittari saa arvon kyllä, mikäli ominaisuuden tietoja on tarkastettu loogisuusehdoin.","kyllä/ei ",{"$f":"'Kuvattavan tiedon esittely'!B9","v":"nimi5"}]
["Ajantasaisuus","Luontiajankohta","Ominaisuuden tai kohdeyksikön luontiajankohta","Tarkastellaan ajankohtaa, mistä lähtien ominaisuuden arvoja on saatavilla.","ajankohta",{"$f":"'Kuvattavan tiedon esittely'!B5","v":"nimi1"}]
["Ajantasaisuus","Luontiajankohta","Ominaisuuden tai kohdeyksikön luontiajankohta","Tarkastellaan ajankohtaa, mistä lähtien ominaisuuden arvoja on saatavilla.","ajankohta",{"$f":"'Kuvattavan tiedon esittely'!B6","v":"nimi2"}]
["Ajantasaisuus","Luontiajankohta","Ominaisuuden tai kohdeyksikön luontiajankohta","Tarkastellaan ajankohtaa, mistä lähtien ominaisuuden arvoja on saatavilla.","ajankohta",{"$f":"'Kuvattavan tiedon esittely'!B7","v":"nimi3"}]
["Ajantasaisuus","Luontiajankohta","Ominaisuuden tai kohdeyksikön luontiajankohta","Tarkastellaan ajankohtaa, mistä lähtien ominaisuuden arvoja on saatavilla.","ajankohta",{"$f":"'Kuvattavan tiedon esittely'!B8","v":"nimi4"}]
["Ajantasaisuus","Luontiajankohta","Ominaisuuden tai kohdeyksikön luontiajankohta","Tarkastellaan ajankohtaa, mistä lähtien ominaisuuden arvoja on saatavilla.","ajankohta",{"$f":"'Kuvattavan tiedon esittely'!B9","v":"nimi5"}]
["Ajantasaisuus","Tarkistusajankohta","Ajankohta jolloin ominaisuuden tai kohdeyksikön arvoja on tarkistettu","Päivämäärä, jolloin ominaisuuden tietoja on viimeksi tarkistettu.","ajankohta/ei relevantti",{"$f":"'Kuvattavan tiedon esittely'!B5","v":"nimi1"}]
["Ajantasaisuus","Tarkistusajankohta","Ajankohta jolloin ominaisuuden tai kohdeyksikön arvoja on tarkistettu","Päivämäärä, jolloin ominaisuuden tietoja on viimeksi tarkistettu.","ajankohta/ei relevantti",{"$f":"'Kuvattavan tiedon esittely'!B6","v":"nimi2"}]
["Ajantasaisuus","Tarkistusajankohta","Ajankohta jolloin ominaisuuden tai kohdeyksikön arvoja on tarkistettu","Päivämäärä, jolloin ominaisuuden tietoja on viimeksi tarkistettu.","ajankohta/ei relevantti",{"$f":"'Kuvattavan tiedon esittely'!B7","v":"nimi3"}]
["Ajantasaisuus","Tarkistusajankohta","Ajankohta jolloin ominaisuuden tai kohdeyksikön arvoja on tarkistettu","Päivämäärä, jolloin ominaisuuden tietoja on viimeksi tarkistettu.","ajankohta/ei relevantti",{"$f":"'Kuvattavan tiedon esittely'!B8","v":"nimi4"}]
["Ajantasaisuus","Tarkistusajankohta","Ajankohta jolloin ominaisuuden tai kohdeyksikön arvoja on tarkistettu","Päivämäärä, jolloin ominaisuuden tietoja on viimeksi tarkistettu.","ajankohta/ei relevantti",{"$f":"'Kuvattavan tiedon esittely'!B9","v":"nimi5"}]
["Ajantasaisuus","Muutosajankohta","Ajankohta jolloin ominaisuuden tai kohdeyksikön arvoja on muutettu","Viimeisin päivämäärä, jolloin ominaisuutta on muokattu.","ajankohta/ei relevantti",{"$f":"'Kuvattavan tiedon esittely'!B5","v":"nimi1"}]
["Ajantasaisuus","Muutosajankohta","Ajankohta jolloin ominaisuuden tai kohdeyksikön arvoja on muutettu","Viimeisin päivämäärä, jolloin ominaisuutta on muokattu.","ajankohta/ei relevantti",{"$f":"'Kuvattavan tiedon esittely'!B6","v":"nimi2"}]
["Ajantasaisuus","Muutosajankohta","Ajankohta jolloin ominaisuuden tai kohdeyksikön arvoja on muutettu","Viimeisin päivämäärä, jolloin ominaisuutta on muokattu.","ajankohta/ei relevantti",{"$f":"'Kuvattavan tiedon esittely'!B7","v":"nimi3"}]
["Ajantasaisuus","Muutosajankohta","Ajankohta jolloin ominaisuuden tai kohdeyksikön arvoja on muutettu","Viimeisin päivämäärä, jolloin ominaisuutta on muokattu.","ajankohta/ei relevantti",{"$f":"'Kuvattavan tiedon esittely'!B8","v":"nimi4"}]
["Ajantasaisuus","Muutosajankohta","Ajankohta jolloin ominaisuuden tai kohdeyksikön arvoja on muutettu","Viimeisin päivämäärä, jolloin ominaisuutta on muokattu.","ajankohta/ei relevantti",{"$f":"'Kuvattavan tiedon esittely'!B9","v":"nimi5"}]
["Kattavuus","Puutteelliset kohdeyksiköt","Tarkasteltavan ominaisuuden puuttuvia tietoja omaavien kohdeyksiköiden osuus kohdeyksiköiden lukumäärästä.","Puuttuvuudessa ei oteta huomioon rakenteellista puuttuvuutta.","prosentteina",{"$f":"'Kuvattavan tiedon esittely'!B5","v":"nimi1"}]
["Kattavuus","Puutteelliset kohdeyksiköt","Tarkasteltavan ominaisuuden puuttuvia tietoja omaavien kohdeyksiköiden osuus kohdeyksiköiden lukumäärästä.","Puuttuvuudessa ei oteta huomioon rakenteellista puuttuvuutta.","prosentteina",{"$f":"'Kuvattavan tiedon esittely'!B6","v":"nimi2"}]
["Kattavuus","Puutteelliset kohdeyksiköt","Tarkasteltavan ominaisuuden puuttuvia tietoja omaavien kohdeyksiköiden osuus kohdeyksiköiden lukumäärästä.","Puuttuvuudessa ei oteta huomioon rakenteellista puuttuvuutta.","prosentteina",{"$f":"'Kuvattavan tiedon esittely'!B7","v":"nimi3"}]
["Kattavuus","Puutteelliset kohdeyksiköt","Tarkasteltavan ominaisuuden puuttuvia tietoja omaavien kohdeyksiköiden osuus kohdeyksiköiden lukumäärästä.","Puuttuvuudessa ei oteta huomioon rakenteellista puuttuvuutta.","prosentteina",{"$f":"'Kuvattavan tiedon esittely'!B8","v":"nimi4"}]
["Kattavuus","Puutteelliset kohdeyksiköt","Tarkasteltavan ominaisuuden puuttuvia tietoja omaavien kohdeyksiköiden osuus kohdeyksiköiden lukumäärästä.","Puuttuvuudessa ei oteta huomioon rakenteellista puuttuvuutta.","prosentteina",{"$f":"'Kuvattavan tiedon esittely'!B9","v":"nimi5"}]
["Alkuperäisyys","Tietolähde","Kuinka suurella osalla ominaisuustietoja lähdetiedot ovat saatavilla.  Arvo ilmoitetaan saatavilla olevien lähdetietojen suhteena tietojen lukumäärään. ","Keskitytään tarkastelemaan tietolähdettä, josta tiedot on saatu laatua arvioivalle taholle ja tarkastellaan ensisijaisesti organisaation ulkopuolisia tietolähteitä. Keskimääräiset osuudet riittävät.","prosentteina",{"$f":"'Kuvattavan tiedon esittely'!B5","v":"nimi1"}]
["Alkuperäisyys","Tietolähde","Kuinka suurella osalla ominaisuustietoja lähdetiedot ovat saatavilla.  Arvo ilmoitetaan saatavilla olevien lähdetietojen suhteena tietojen lukumäärään. ","Keskitytään tarkastelemaan tietolähdettä, josta tiedot on saatu laatua arvioivalle taholle ja tarkastellaan ensisijaisesti organisaation ulkopuolisia tietolähteitä. Keskimääräiset osuudet riittävät.","prosentteina",{"$f":"'Kuvattavan tiedon esittely'!B6","v":"nimi2"}]
["Alkuperäisyys","Tietolähde","Kuinka suurella osalla ominaisuustietoja lähdetiedot ovat saatavilla.  Arvo ilmoitetaan saatavilla olevien lähdetietojen suhteena tietojen lukumäärään. ","Keskitytään tarkastelemaan tietolähdettä, josta tiedot on saatu laatua arvioivalle taholle ja tarkastellaan ensisijaisesti organisaation ulkopuolisia tietolähteitä. Keskimääräiset osuudet riittävät.","prosentteina",{"$f":"'Kuvattavan tiedon esittely'!B7","v":"nimi3"}]
["Alkuperäisyys","Tietolähde","Kuinka suurella osalla ominaisuustietoja lähdetiedot ovat saatavilla.  Arvo ilmoitetaan saatavilla olevien lähdetietojen suhteena tietojen lukumäärään. ","Keskitytään tarkastelemaan tietolähdettä, josta tiedot on saatu laatua arvioivalle taholle ja tarkastellaan ensisijaisesti organisaation ulkopuolisia tietolähteitä. Keskimääräiset osuudet riittävät.","prosentteina",{"$f":"'Kuvattavan tiedon esittely'!B8","v":"nimi4"}]
["Alkuperäisyys","Tietolähde","Kuinka suurella osalla ominaisuustietoja lähdetiedot ovat saatavilla. Arvo ilmoitetaan saatavilla olevien lähdetietojen suhteena tietojen lukumäärään. ","Keskitytään tarkastelemaan tietolähdettä, josta tiedot on saatu laatua arvioivalle taholle ja tarkastellaan ensisijaisesti organisaation ulkopuolisia tietolähteitä. Keskimääräiset osuudet riittävät.","prosentteina",{"$f":"'Kuvattavan tiedon esittely'!B9","v":"nimi5"}]
["Alkuperäisyys","Muutosten hallinta","Seurataanko ominaisuustiedoissa tapahtuvia rakenteellisia tai lähdetietojen muutoksia?","Mittari saa arvon kyllä, mikäli muutoksia seurataan.","kyllä/ei ",{"$f":"'Kuvattavan tiedon esittely'!B5","v":"nimi1"}]
["Alkuperäisyys","Muutosten hallinta","Seurataanko ominaisuustiedoissa tapahtuvia rakenteellisia tai lähdetietojen muutoksia?","Mittari saa arvon kyllä, mikäli muutoksia seurataan.","kyllä/ei ",{"$f":"'Kuvattavan tiedon esittely'!B6","v":"nimi2"}]
["Alkuperäisyys","Muutosten hallinta","Seurataanko ominaisuustiedoissa tapahtuvia rakenteellisia tai lähdetietojen muutoksia?","Mittari saa arvon kyllä, mikäli muutoksia seurataan.","kyllä/ei ",{"$f":"'Kuvattavan tiedon esittely'!B7","v":"nimi3"}]
["Alkuperäisyys","Muutosten hallinta","Seurataanko ominaisuustiedoissa tapahtuvia rakenteellisia tai lähdetietojen muutoksia?","Mittari saa arvon kyllä, mikäli muutoksia seurataan.","kyllä/ei ",{"$f":"'Kuvattavan tiedon esittely'!B8","v":"nimi4"}]
["Alkuperäisyys","Muutosten hallinta","Seurataanko ominaisuustiedoissa tapahtuvia rakenteellisia tai lähdetietojen muutoksia?","Mittari saa arvon kyllä, mikäli muutoksia seurataan.","kyllä/ei ",{"$f":"'Kuvattavan tiedon esittely'!B9","v":"nimi5"}]
["Metatietojen ymmärrettävyys","Ominaisuuksien tietokuvaukset","Mitä kieliversioita tietoaineiston ominaisuuksien kuvauksista ja koodistosta on saatavilla?","Kirjataan ne kielet, joilla ominaisuuden tietokuvaukset on saatavilla ","kielet",{"$f":"'Kuvattavan tiedon esittely'!B5","v":"nimi1"}]
["Metatietojen ymmärrettävyys","Ominaisuuksien tietokuvaukset","Mitä kieliversioita tietoaineiston ominaisuuksien kuvauksista ja koodistosta on saatavilla?","Kirjataan ne kielet, joilla ominaisuuden tietokuvaukset on saatavilla ","kielet",{"$f":"'Kuvattavan tiedon esittely'!B6","v":"nimi2"}]
["Metatietojen ymmärrettävyys","Ominaisuuksien tietokuvaukset","Mitä kieliversioita tietoaineiston ominaisuuksien kuvauksista ja koodistosta on saatavilla?","Kirjataan ne kielet, joilla ominaisuuden tietokuvaukset on saatavilla ","kielet",{"$f":"'Kuvattavan tiedon esittely'!B7","v":"nimi3"}]
["Metatietojen ymmärrettävyys","Ominaisuuksien tietokuvaukset","Mitä kieliversioita tietoaineiston ominaisuuksien kuvauksista ja koodistosta on saatavilla?","Kirjataan ne kielet, joilla ominaisuuden tietokuvaukset on saatavilla ","kielet",{"$f":"'Kuvattavan tiedon esittely'!B8","v":"nimi4"}]
["Metatietojen ymmärrettävyys","Ominaisuuksien tietokuvaukset","Mitä kieliversioita tietoaineiston ominaisuuksien kuvauksista ja koodistosta on saatavilla?","Kirjataan ne kielet, joilla ominaisuuden tietokuvaukset on saatavilla ","kielet",{"$f":"'Kuvattavan tiedon esittely'!B9","v":"nimi5"}]
["Suositustenmukaisuus","Noudatettavat säädökset ja suositukset","Ovatko tietoaineiston noudattamat standardit, käytännöt ja säädökset listattuna tietoaineiston kuvauksissa?","Mittari saa arvon kyllä, mikäli ominaisuuteen kohdistuvat standardit on tunnistettu ja kuvattu.  ","kyllä/ei ",{"$f":"'Kuvattavan tiedon esittely'!B6","v":"nimi2"}]
["Suositustenmukaisuus","Noudatettavat säädökset ja suositukset","Ovatko tietoaineiston noudattamat standardit, käytännöt ja säädökset listattuna tietoaineiston kuvauksissa?","Mittari saa arvon kyllä, mikäli ominaisuuteen kohdistuvat standardit on tunnistettu ja kuvattu.  ","kyllä/ei ",{"$f":"'Kuvattavan tiedon esittely'!B6","v":"nimi2"}]
["Suositustenmukaisuus","Noudatettavat säädökset ja suositukset","Ovatko tietoaineiston noudattamat standardit, käytännöt ja säädökset listattuna tietoaineiston kuvauksissa?","Mittari saa arvon kyllä, mikäli ominaisuuteen kohdistuvat standardit on tunnistettu ja kuvattu.  ","kyllä/ei ",{"$f":"'Kuvattavan tiedon esittely'!B7","v":"nimi3"}]
["Suositustenmukaisuus","Noudatettavat säädökset ja suositukset","Ovatko tietoaineiston noudattamat standardit, käytännöt ja säädökset listattuna tietoaineiston kuvauksissa?","Mittari saa arvon kyllä, mikäli ominaisuuteen kohdistuvat standardit on tunnistettu ja kuvattu.  ","kyllä/ei ",{"$f":"'Kuvattavan tiedon esittely'!B8","v":"nimi4"}]
["Suositustenmukaisuus","Noudatettavat säädökset ja suositukset","Ovatko tietoaineiston noudattamat standardit, käytännöt ja säädökset listattuna tietoaineiston kuvauksissa?","Mittari saa arvon kyllä, mikäli ominaisuuteen kohdistuvat standardit on tunnistettu ja kuvattu.  ","kyllä/ei ",{"$f":"'Kuvattavan tiedon esittely'!B9","v":"nimi5"}]
["Oikea-aikaisuus","Päivitystiheys","Ominaisuuden tietojen säännöllinen päivitystiheys.","Kuvataan päivitystiheys sanallisesti ilmaistuna.","päivitystiheyttä kuvaava sanallinen ilmaus",{"$f":"'Kuvattavan tiedon esittely'!B5","v":"nimi1"}]
["Oikea-aikaisuus","Päivitystiheys","Ominaisuuden tietojen säännöllinen päivitystiheys.","Kuvataan päivitystiheys sanallisesti ilmaistuna.","päivitystiheyttä kuvaava sanallinen ilmaus",{"$f":"'Kuvattavan tiedon esittely'!B6","v":"nimi2"}]
["Oikea-aikaisuus","Päivitystiheys","Ominaisuuden tietojen säännöllinen päivitystiheys.","Kuvataan päivitystiheys sanallisesti ilmaistuna.","päivitystiheyttä kuvaava sanallinen ilmaus",{"$f":"'Kuvattavan tiedon esittely'!B7","v":"nimi3"}]
["Oikea-aikaisuus","Päivitystiheys","Ominaisuuden tietojen säännöllinen päivitystiheys.","Kuvataan päivitystiheys sanallisesti ilmaistuna.","päivitystiheyttä kuvaava sanallinen ilmaus",{"$f":"'Kuvattavan tiedon esittely'!B8","v":"nimi4"}]
["Oikea-aikaisuus","Päivitystiheys","Ominaisuuden tietojen säännöllinen päivitystiheys.","Kuvataan päivitystiheys sanallisesti ilmaistuna.","päivitystiheyttä kuvaava sanallinen ilmaus",{"$f":"'Kuvattavan tiedon esittely'!B9","v":"nimi5"}]
["Oikea-aikaisuus","Päivityksessä muutuneet ominaisuustiedot","Muuttuneiden ominaisuuden arvojen osuus tietoaineiston ominaisuusarvojen lukumäärästä, kun verrataan päivitettyä tietoaineistoa edelliseen tietoaineiston versioon.","Kerrotaan päivitettyjen arvojen osuus kaikista ominaisuuden arvoista päivitettyä ja edellistä tietoaineiston versiota verrattaessa.","prosentteina",{"$f":"'Kuvattavan tiedon esittely'!B5","v":"nimi1"}]
["Oikea-aikaisuus","Päivityksessä muutuneet ominaisuustiedot","Muuttuneiden ominaisuuden arvojen osuus tietoaineiston ominaisuusarvojen lukumäärästä, kun verrataan päivitettyä tietoaineistoa edelliseen tietoaineiston versioon.","Kerrotaan päivitettyjen arvojen osuus kaikista ominaisuuden arvoista päivitettyä ja edellistä tietoaineiston versiota verrattaessa.","prosentteina",{"$f":"'Kuvattavan tiedon esittely'!B6","v":"nimi2"}]
["Oikea-aikaisuus","Päivityksessä muutuneet ominaisuustiedot","Muuttuneiden ominaisuuden arvojen osuus tietoaineiston ominaisuusarvojen lukumäärästä, kun verrataan päivitettyä tietoaineistoa edelliseen tietoaineiston versioon.","Kerrotaan päivitettyjen arvojen osuus kaikista ominaisuuden arvoista päivitettyä ja edellistä tietoaineiston versiota verrattaessa.","prosentteina",{"$f":"'Kuvattavan tiedon esittely'!B7","v":"nimi3"}]
["Oikea-aikaisuus","Päivityksessä muutuneet ominaisuustiedot","Muuttuneiden ominaisuuden arvojen osuus tietoaineiston ominaisuusarvojen lukumäärästä, kun verrataan päivitettyä tietoaineistoa edelliseen tietoaineiston versioon.","Kerrotaan päivitettyjen arvojen osuus kaikista ominaisuuden arvoista päivitettyä ja edellistä tietoaineiston versiota verrattaessa.","prosentteina",{"$f":"'Kuvattavan tiedon esittely'!B8","v":"nimi4"}]
["Oikea-aikaisuus","Päivityksessä muutuneet ominaisuustiedot","Muuttuneiden ominaisuuden arvojen osuus tietoaineiston ominaisuusarvojen lukumäärästä, kun verrataan päivitettyä tietoaineistoa edelliseen tietoaineiston versioon.","Kerrotaan päivitettyjen arvojen osuus kaikista ominaisuuden arvoista päivitettyä ja edellistä tietoaineiston versiota verrattaessa.","prosentteina",{"$f":"'Kuvattavan tiedon esittely'!B9","v":"nimi5"}]